[Event "Titled Tuesday Blitz April 19 Late 2022"]
[White "Ahmadzada, Ahmad"]
[Black "Golubev, Mikhail"]
[WhiteFideId "13413007"]
[BlackFideId "14100983"]
[WhiteElo "2228"]
[BlackElo "2374"]
[Result "1-0"]
[Round "01"]
[TimeControl "180+1"]
[Date "2022.04.19"]
[WhiteClock "0:02:01"]
[BlackClock "0:00:48"]

1. Nf3 {[%clk 0:03:00]}  d6 {[%clk 0:02:59]} 2. e4 {[%clk 0:03:00]}  c5 {[%clk 0:02:58]} 3. Nc3 {[%clk 0:02:59]}  Nc6 {[%clk 0:02:54]} 4. Bb5 {[%clk 0:02:58]}  Bd7 {[%clk 0:02:54]} 5. O-O {[%clk 0:02:57]}  Nf6 {[%clk 0:02:49]} 6. Re1 {[%clk 0:02:57]}  e5 {[%clk 0:02:48]} 7. Nd5 {[%clk 0:02:56]}  Nxd5 {[%clk 0:02:45]} 8. exd5 {[%clk 0:02:55]}  Ne7 {[%clk 0:02:45]} 9. Bxd7+ {[%clk 0:02:32]}  Qxd7 {[%clk 0:02:46]} 10. c4 {[%clk 0:02:33]}  g6 {[%clk 0:02:42]} 11. d4 {[%clk 0:02:29]}  cxd4 {[%clk 0:02:40]} 12. Nxd4 {[%clk 0:02:28]}  exd4 {[%clk 0:02:22]} 13. Qxd4 {[%clk 0:02:28]}  Rg8 {[%clk 0:02:23]} 14. Bg5 {[%clk 0:02:28]}  O-O-O {[%clk 0:02:12]} 15. Qxa7 {[%clk 0:02:23]}  Kc7 {[%clk 0:01:43]} 16. c5 {[%clk 0:02:11]}  Nc8 {[%clk 0:00:49]} 17. cxd6+ {[%clk 0:02:04]}  Qxd6 {[%clk 0:00:48]} 18. Rac1+ {[%clk 0:02:01]} 1-0


[Site "https://www.chess.com"]

[Event "Titled Tuesday Blitz April 19 Late 2022"]
[White "Ardila, Oscar Humberto"]
[Black "Bilan, Danila"]
[WhiteFideId "4404742"]
[BlackFideId "24161918"]
[WhiteElo "1983"]
[BlackElo "2164"]
[Result "1/2-1/2"]
[Round "01"]
[TimeControl "180+1"]
[Date "2022.04.19"]
[WhiteClock "0:00:52"]
[BlackClock "0:00:04"]

1. d4 {[%clk 0:02:58]}  d5 {[%clk 0:02:58]} 2. c4 {[%clk 0:02:58]}  c6 {[%clk 0:02:58]} 3. cxd5 {[%clk 0:02:58]}  cxd5 {[%clk 0:02:59]} 4. Nc3 {[%clk 0:02:59]}  Nf6 {[%clk 0:02:59]} 5. Nf3 {[%clk 0:02:59]}  Nc6 {[%clk 0:02:59]} 6. Bf4 {[%clk 0:02:59]}  Bf5 {[%clk 0:02:58]} 7. e3 {[%clk 0:02:59]}  e6 {[%clk 0:02:58]} 8. Be2 {[%clk 0:02:58]}  Bd6 {[%clk 0:02:57]} 9. Bxd6 {[%clk 0:02:57]}  Qxd6 {[%clk 0:02:58]} 10. O-O {[%clk 0:02:57]}  O-O {[%clk 0:02:58]} 11. Rc1 {[%clk 0:02:58]}  Rfc8 {[%clk 0:02:55]} 12. a3 {[%clk 0:02:58]}  Na5 {[%clk 0:02:35]} 13. b4 {[%clk 0:02:53]}  Nc4 {[%clk 0:02:34]} 14. Bxc4 {[%clk 0:02:53]}  Rxc4 {[%clk 0:02:33]} 15. Ne5 {[%clk 0:02:52]}  Rcc8 {[%clk 0:02:29]} 16. Nb5 {[%clk 0:02:51]}  Qb6 {[%clk 0:02:20]} 17. Qe2 {[%clk 0:02:46]}  Ne4 {[%clk 0:01:48]} 18. f3 {[%clk 0:02:41]}  Nd6 {[%clk 0:01:42]} 19. Nxd6 {[%clk 0:02:31]}  Qxd6 {[%clk 0:01:42]} 20. Qd2 {[%clk 0:02:27]}  Qa6 {[%clk 0:01:17]} 21. Rxc8+ {[%clk 0:02:15]}  Rxc8 {[%clk 0:01:17]} 22. Rc1 {[%clk 0:02:16]}  b6 {[%clk 0:01:11]} 23. Rc3 {[%clk 0:02:10]}  h6 {[%clk 0:00:50]} 24. Qc1 {[%clk 0:02:05]}  Rxc3 {[%clk 0:00:44]} 25. Qxc3 {[%clk 0:02:06]}  Qe2 {[%clk 0:00:43]} 26. h3 {[%clk 0:02:02]}  f6 {[%clk 0:00:31]} 27. Nd7 {[%clk 0:01:45]}  Qc4 {[%clk 0:00:19]} 28. Qd2 {[%clk 0:01:24]}  Qc7 {[%clk 0:00:13]} 29. e4 {[%clk 0:01:25]}  Bg6 {[%clk 0:00:08]} 30. Nxf6+ {[%clk 0:01:10]}  gxf6 {[%clk 0:00:09]} 31. Qxh6 {[%clk 0:01:10]}  Qg7 {[%clk 0:00:09]} 32. Qf4 {[%clk 0:01:09]}  dxe4 {[%clk 0:00:08]} 33. fxe4 {[%clk 0:01:09]}  Qe7 {[%clk 0:00:05]} 34. Qb8+ {[%clk 0:01:06]}  Kg7 {[%clk 0:00:06]} 35. Qf4 {[%clk 0:01:06]}  Qb7 {[%clk 0:00:04]} 36. e5 {[%clk 0:01:04]}  Qf7 {[%clk 0:00:04]} 37. Kh2 {[%clk 0:01:02]}  f5 {[%clk 0:00:03]} 38. Qh4 {[%clk 0:00:58]}  Kf8 {[%clk 0:00:02]} 39. Qd8+ {[%clk 0:00:57]}  Kg7 {[%clk 0:00:03]} 40. a4 {[%clk 0:00:57]}  Qb7 {[%clk 0:00:03]} 41. Qf6+ {[%clk 0:00:56]}  Kh7 {[%clk 0:00:03]} 42. Qxe6 {[%clk 0:00:55]}  Qe4 {[%clk 0:00:03]} 43. Qd7+ {[%clk 0:00:53]}  Kh6 {[%clk 0:00:03]} 44. e6 {[%clk 0:00:51]}  Qf4+ {[%clk 0:00:03]} 45. Kg1 {[%clk 0:00:51]}  Qe3+ {[%clk 0:00:04]} 46. Kh2 {[%clk 0:00:51]}  Qf4+ {[%clk 0:00:04]} 47. Kg1 {[%clk 0:00:51]}  Qe3+ {[%clk 0:00:03]} 48. Kh2 {[%clk 0:00:52]}  Qf4+ {[%clk 0:00:04]} 1/2-1/2


[Site "https://www.chess.com"]

[Event "Titled Tuesday Blitz April 19 Late 2022"]
[White "Avramidou, Anastasia"]
[Black "Indjic, Aleksandar"]
[WhiteFideId "4239873"]
[BlackFideId "911925"]
[WhiteElo "2183"]
[BlackElo "2616"]
[Result "1-0"]
[Round "01"]
[TimeControl "180+1"]
[Date "2022.04.19"]
[WhiteClock "0:00:19"]
[BlackClock "0:00:05"]

1. d4 {[%clk 0:02:11]}  d5 {[%clk 0:02:50]} 2. c4 {[%clk 0:02:11]}  dxc4 {[%clk 0:02:51]} 3. Nf3 {[%clk 0:02:10]}  Nf6 {[%clk 0:02:46]} 4. e3 {[%clk 0:02:11]}  Bg4 {[%clk 0:02:43]} 5. Bxc4 {[%clk 0:02:11]}  e6 {[%clk 0:02:42]} 6. h3 {[%clk 0:02:11]}  Bh5 {[%clk 0:02:39]} 7. Nc3 {[%clk 0:02:11]}  a6 {[%clk 0:02:38]} 8. Be2 {[%clk 0:02:11]}  Nc6 {[%clk 0:02:35]} 9. Qb3 {[%clk 0:02:09]}  Rb8 {[%clk 0:02:29]} 10. O-O {[%clk 0:02:08]}  Bd6 {[%clk 0:02:28]} 11. Rd1 {[%clk 0:02:08]}  O-O {[%clk 0:02:28]} 12. e4 {[%clk 0:02:09]}  Bxf3 {[%clk 0:02:17]} 13. Bxf3 {[%clk 0:02:09]}  e5 {[%clk 0:02:17]} 14. dxe5 {[%clk 0:02:03]}  Nxe5 {[%clk 0:02:17]} 15. Be2 {[%clk 0:02:02]}  Ng6 {[%clk 0:01:27]} 16. Bg5 {[%clk 0:01:55]}  h6 {[%clk 0:01:26]} 17. Be3 {[%clk 0:01:52]}  Qe7 {[%clk 0:01:26]} 18. Bf3 {[%clk 0:01:51]}  Nh4 {[%clk 0:01:22]} 19. Nd5 {[%clk 0:01:44]}  Nxf3+ {[%clk 0:01:13]} 20. gxf3 {[%clk 0:01:44]}  Qe6 {[%clk 0:01:10]} 21. Nxf6+ {[%clk 0:01:34]}  Qxf6 {[%clk 0:01:10]} 22. Bd4 {[%clk 0:01:29]}  Qf4 {[%clk 0:01:02]} 23. Kf1 {[%clk 0:01:24]}  Kh7 {[%clk 0:00:50]} 24. Ke2 {[%clk 0:01:22]}  f5 {[%clk 0:00:49]} 25. Rg1 {[%clk 0:01:17]}  g5 {[%clk 0:00:36]} 26. Be3 {[%clk 0:01:16]}  Qe5 {[%clk 0:00:34]} 27. Qc2 {[%clk 0:00:40]}  Rbe8 {[%clk 0:00:27]} 28. Rad1 {[%clk 0:00:38]}  fxe4 {[%clk 0:00:26]} 29. fxe4 {[%clk 0:00:38]}  Qxe4 {[%clk 0:00:26]} 30. Qxe4+ {[%clk 0:00:39]}  Rxe4 {[%clk 0:00:24]} 31. Rd3 {[%clk 0:00:37]}  Rfe8 {[%clk 0:00:22]} 32. Rb3 {[%clk 0:00:37]}  b5 {[%clk 0:00:21]} 33. Rc3 {[%clk 0:00:36]}  Rh4 {[%clk 0:00:17]} 34. Rh1 {[%clk 0:00:33]}  g4 {[%clk 0:00:14]} 35. Rc6 {[%clk 0:00:29]}  Rxh3 {[%clk 0:00:09]} 36. Rg1 {[%clk 0:00:20]}  h5 {[%clk 0:00:09]} 37. Rxa6 {[%clk 0:00:20]}  Bf4 {[%clk 0:00:07]} 38. Rc6 {[%clk 0:00:18]}  Bxe3 {[%clk 0:00:05]} 39. fxe3 {[%clk 0:00:19]} 1-0


[Site "https://www.chess.com"]

[Event "Titled Tuesday Blitz April 19 Late 2022"]
[White "Baches Garcia, Guillermo"]
[Black "Bluebaum, Matthias"]
[WhiteFideId "2209764"]
[BlackFideId "24651516"]
[WhiteElo "2507"]
[BlackElo "2550"]
[Result "0-1"]
[Round "01"]
[TimeControl "180+1"]
[Date "2022.04.19"]
[WhiteClock "0:00:03"]
[BlackClock "0:00:21"]

1. e4 {[%clk 0:03:00]}  c6 {[%clk 0:02:58]} 2. Nc3 {[%clk 0:03:00]}  d5 {[%clk 0:02:57]} 3. Nf3 {[%clk 0:03:01]}  dxe4 {[%clk 0:02:56]} 4. Nxe4 {[%clk 0:03:02]}  Nf6 {[%clk 0:02:57]} 5. Qe2 {[%clk 0:03:02]}  Nxe4 {[%clk 0:02:57]} 6. Qxe4 {[%clk 0:03:03]}  Nd7 {[%clk 0:02:57]} 7. d4 {[%clk 0:03:01]}  Nf6 {[%clk 0:02:58]} 8. Qf4 {[%clk 0:03:01]}  Nd5 {[%clk 0:02:58]} 9. Qd2 {[%clk 0:03:01]}  Bf5 {[%clk 0:02:56]} 10. Bd3 {[%clk 0:03:00]}  Bxd3 {[%clk 0:02:57]} 11. Qxd3 {[%clk 0:03:01]}  e6 {[%clk 0:02:57]} 12. O-O {[%clk 0:03:01]}  Bd6 {[%clk 0:02:58]} 13. c4 {[%clk 0:02:59]}  Ne7 {[%clk 0:02:58]} 14. b3 {[%clk 0:02:54]}  O-O {[%clk 0:02:58]} 15. Bb2 {[%clk 0:02:55]}  Ng6 {[%clk 0:02:51]} 16. g3 {[%clk 0:02:52]}  Re8 {[%clk 0:02:48]} 17. Rad1 {[%clk 0:02:51]}  Qa5 {[%clk 0:02:48]} 18. a3 {[%clk 0:02:47]}  Rad8 {[%clk 0:02:48]} 19. b4 {[%clk 0:02:45]}  Qh5 {[%clk 0:02:48]} 20. Qe4 {[%clk 0:02:30]}  h6 {[%clk 0:02:33]} 21. Kg2 {[%clk 0:02:25]}  f5 {[%clk 0:02:25]} 22. Qe3 {[%clk 0:02:20]}  Bc7 {[%clk 0:02:20]} 23. Rd3 {[%clk 0:02:10]}  b5 {[%clk 0:01:59]} 24. cxb5 {[%clk 0:01:57]}  cxb5 {[%clk 0:02:00]} 25. Ne5 {[%clk 0:01:45]}  Bxe5 {[%clk 0:01:50]} 26. dxe5 {[%clk 0:01:44]}  Qg4 {[%clk 0:01:50]} 27. f4 {[%clk 0:01:32]}  Nh4+ {[%clk 0:01:26]} 28. Kg1 {[%clk 0:01:20]}  Qh3 {[%clk 0:01:20]} 29. Rf2 {[%clk 0:01:06]}  Ng6 {[%clk 0:01:19]} 30. Rfd2 {[%clk 0:00:57]}  Rxd3 {[%clk 0:01:16]} 31. Rxd3 {[%clk 0:00:57]}  Rc8 {[%clk 0:01:07]} 32. Qd2 {[%clk 0:00:54]}  Kh7 {[%clk 0:01:00]} 33. Bd4 {[%clk 0:00:48]}  Rd8 {[%clk 0:00:53]} 34. Be3 {[%clk 0:00:37]}  Rxd3 {[%clk 0:00:44]} 35. Qxd3 {[%clk 0:00:38]}  Qg4 {[%clk 0:00:45]} 36. Kf2 {[%clk 0:00:32]}  Ne7 {[%clk 0:00:30]} 37. Bxa7 {[%clk 0:00:27]}  Nd5 {[%clk 0:00:29]} 38. Bc5 {[%clk 0:00:21]}  Qh3 {[%clk 0:00:27]} 39. Kg1 {[%clk 0:00:20]}  Nxf4 {[%clk 0:00:27]} 40. Qf3 {[%clk 0:00:17]}  Nd5 {[%clk 0:00:26]} 41. a4 {[%clk 0:00:16]}  bxa4 {[%clk 0:00:25]} 42. b5 {[%clk 0:00:16]}  f4 {[%clk 0:00:23]} 43. b6 {[%clk 0:00:15]}  Qf5 {[%clk 0:00:24]} 44. gxf4 {[%clk 0:00:12]}  Nxf4 {[%clk 0:00:22]} 45. b7 {[%clk 0:00:10]}  Qb1+ {[%clk 0:00:22]} 46. Kf2 {[%clk 0:00:08]}  Nd3+ {[%clk 0:00:21]} 47. Qxd3+ {[%clk 0:00:06]}  Qxd3 {[%clk 0:00:22]} 48. b8=Q {[%clk 0:00:06]}  Qc2+ {[%clk 0:00:23]} 49. Kg3 {[%clk 0:00:06]}  Qxc5 {[%clk 0:00:22]} 50. Qd6 {[%clk 0:00:06]}  Qe3+ {[%clk 0:00:21]} 51. Kg2 {[%clk 0:00:06]}  Qe4+ {[%clk 0:00:21]} 52. Kg3 {[%clk 0:00:06]}  Qg6+ {[%clk 0:00:21]} 53. Kf4 {[%clk 0:00:05]}  Qf5+ {[%clk 0:00:21]} 54. Ke3 {[%clk 0:00:06]}  h5 {[%clk 0:00:21]} 55. Kd4 {[%clk 0:00:06]}  Qg4+ {[%clk 0:00:21]} 56. Kc5 {[%clk 0:00:06]}  a3 {[%clk 0:00:21]} 57. Kc6 {[%clk 0:00:06]}  a2 {[%clk 0:00:21]} 58. Qxe6 {[%clk 0:00:03]}  Qxe6+ {[%clk 0:00:21]} 0-1


[Site "https://www.chess.com"]

[Event "Titled Tuesday Blitz April 19 Late 2022"]
[White "Baker, Chris W"]
[Black "Lewtak, Damian"]
[WhiteFideId "401676"]
[BlackFideId "1141724"]
[WhiteElo "2228"]
[BlackElo "2362"]
[Result "1/2-1/2"]
[Round "01"]
[TimeControl "180+1"]
[Date "2022.04.19"]
[WhiteClock "0:00:19"]
[BlackClock "0:00:33"]

1. c4 {[%clk 0:02:58]}  g6 {[%clk 0:02:56]} 2. Nf3 {[%clk 0:02:55]}  Bg7 {[%clk 0:02:57]} 3. g3 {[%clk 0:02:55]}  e5 {[%clk 0:02:57]} 4. Nc3 {[%clk 0:02:52]}  f5 {[%clk 0:02:57]} 5. d3 {[%clk 0:02:51]}  Nf6 {[%clk 0:02:57]} 6. Nxe5 {[%clk 0:02:49]}  d6 {[%clk 0:02:54]} 7. Nf3 {[%clk 0:02:49]}  O-O {[%clk 0:02:54]} 8. Bg2 {[%clk 0:02:49]}  Nc6 {[%clk 0:02:54]} 9. O-O {[%clk 0:02:49]}  Ne5 {[%clk 0:02:48]} 10. Bg5 {[%clk 0:02:33]}  h6 {[%clk 0:02:47]} 11. Bxf6 {[%clk 0:02:32]}  Bxf6 {[%clk 0:02:48]} 12. Qd2 {[%clk 0:02:26]}  Kh7 {[%clk 0:02:47]} 13. b3 {[%clk 0:02:22]}  c6 {[%clk 0:02:39]} 14. Rad1 {[%clk 0:02:18]}  Qa5 {[%clk 0:02:38]} 15. Ne4 {[%clk 0:02:12]}  Qxd2 {[%clk 0:02:27]} 16. Nxf6+ {[%clk 0:02:11]}  Rxf6 {[%clk 0:02:27]} 17. Rxd2 {[%clk 0:02:10]}  Nf7 {[%clk 0:02:19]} 18. e3 {[%clk 0:02:07]}  Bd7 {[%clk 0:02:19]} 19. d4 {[%clk 0:02:06]}  a5 {[%clk 0:02:18]} 20. a4 {[%clk 0:02:04]}  g5 {[%clk 0:02:16]} 21. Rc1 {[%clk 0:02:02]}  g4 {[%clk 0:02:16]} 22. Ne1 {[%clk 0:02:01]}  Ng5 {[%clk 0:02:15]} 23. Nd3 {[%clk 0:01:59]}  Re8 {[%clk 0:02:08]} 24. Nf4 {[%clk 0:01:59]}  Bc8 {[%clk 0:01:59]} 25. Rb2 {[%clk 0:01:58]}  Ne6 {[%clk 0:01:51]} 26. Nxe6 {[%clk 0:01:54]}  Rfxe6 {[%clk 0:01:52]} 27. b4 {[%clk 0:01:53]}  axb4 {[%clk 0:01:52]} 28. Rxb4 {[%clk 0:01:53]}  R6e7 {[%clk 0:01:52]} 29. Rb6 {[%clk 0:01:51]}  Kg7 {[%clk 0:01:49]} 30. a5 {[%clk 0:01:50]}  Rc7 {[%clk 0:01:49]} 31. Rcb1 {[%clk 0:01:49]}  Rd8 {[%clk 0:01:47]} 32. Bf1 {[%clk 0:01:48]}  c5 {[%clk 0:01:47]} 33. d5 {[%clk 0:01:45]}  Kf6 {[%clk 0:01:44]} 34. Bd3 {[%clk 0:01:43]}  h5 {[%clk 0:01:42]} 35. Bc2 {[%clk 0:01:34]}  Re7 {[%clk 0:01:41]} 36. Ba4 {[%clk 0:01:32]}  Ke5 {[%clk 0:01:38]} 37. Bb5 {[%clk 0:01:31]}  h4 {[%clk 0:01:38]} 38. a6 {[%clk 0:01:30]}  bxa6 {[%clk 0:01:38]} 39. Bxa6 {[%clk 0:01:29]}  Bxa6 {[%clk 0:01:37]} 40. Rxa6 {[%clk 0:01:29]}  h3 {[%clk 0:01:34]} 41. Kf1 {[%clk 0:01:16]}  Rdd7 {[%clk 0:01:33]} 42. Ke2 {[%clk 0:01:15]}  Rb7 {[%clk 0:01:32]} 43. Rbb6 {[%clk 0:01:13]}  Rxb6 {[%clk 0:01:32]} 44. Rxb6 {[%clk 0:01:13]}  Ra7 {[%clk 0:01:33]} 45. Rb2 {[%clk 0:01:12]}  Ra1 {[%clk 0:01:31]} 46. Kd3 {[%clk 0:00:58]}  Rd1+ {[%clk 0:01:23]} 47. Ke2 {[%clk 0:00:56]}  Rh1 {[%clk 0:01:24]} 48. Rb8 {[%clk 0:00:54]}  Rxh2 {[%clk 0:01:21]} 49. Re8+ {[%clk 0:00:54]}  Kf6 {[%clk 0:01:22]} 50. Re6+ {[%clk 0:00:54]}  Kg5 {[%clk 0:01:19]} 51. Rxd6 {[%clk 0:00:54]}  Rh1 {[%clk 0:01:20]} 52. Rd8 {[%clk 0:00:52]}  Rc1 {[%clk 0:01:18]} 53. Rh8 {[%clk 0:00:47]}  Kf6 {[%clk 0:01:18]} 54. Rh6+ {[%clk 0:00:44]}  Ke7 {[%clk 0:01:17]} 55. e4 {[%clk 0:00:39]}  Rxc4 {[%clk 0:01:12]} 56. exf5 {[%clk 0:00:38]}  Re4+ {[%clk 0:01:12]} 57. Kd3 {[%clk 0:00:35]}  Re5 {[%clk 0:01:13]} 58. Kc4 {[%clk 0:00:34]}  Rxf5 {[%clk 0:01:10]} 59. Kxc5 {[%clk 0:00:34]}  Rxf2 {[%clk 0:01:10]} 60. Rh7+ {[%clk 0:00:32]}  Kf6 {[%clk 0:01:10]} 61. d6 {[%clk 0:00:30]}  Rc2+ {[%clk 0:01:08]} 62. Kd5 {[%clk 0:00:30]}  Rd2+ {[%clk 0:01:08]} 63. Kc6 {[%clk 0:00:30]}  Ke5 {[%clk 0:01:03]} 64. d7 {[%clk 0:00:29]}  Ke4 {[%clk 0:00:59]} 65. Rh6 {[%clk 0:00:26]}  Rxd7 {[%clk 0:00:58]} 66. Kxd7 {[%clk 0:00:24]}  Kf3 {[%clk 0:00:58]} 67. Ke6 {[%clk 0:00:20]}  Kxg3 {[%clk 0:00:58]} 68. Kf5 {[%clk 0:00:20]}  h2 {[%clk 0:00:33]} 69. Rxh2 {[%clk 0:00:19]}  Kxh2 {[%clk 0:00:33]} 70. Kxg4 {[%clk 0:00:19]} 1/2-1/2


[Site "https://www.chess.com"]

[Event "Titled Tuesday Blitz April 19 Late 2022"]
[White "Beerdsen, Thomas"]
[Black "Wachinger, Guenther"]
[WhiteFideId "1030108"]
[BlackFideId "4604261"]
[WhiteElo "2585"]
[BlackElo "2212"]
[Result "1-0"]
[Round "01"]
[TimeControl "180+1"]
[Date "2022.04.19"]
[WhiteClock "0:02:04"]
[BlackClock "0:01:13"]

1. e4 {[%clk 0:02:58]}  c5 {[%clk 0:02:56]} 2. Nf3 {[%clk 0:02:56]}  d6 {[%clk 0:02:56]} 3. d4 {[%clk 0:02:56]}  cxd4 {[%clk 0:02:57]} 4. Nxd4 {[%clk 0:02:57]}  Nf6 {[%clk 0:02:58]} 5. Nc3 {[%clk 0:02:57]}  g6 {[%clk 0:02:59]} 6. h3 {[%clk 0:02:58]}  Bg7 {[%clk 0:02:58]} 7. Nf3 {[%clk 0:02:58]}  O-O {[%clk 0:02:58]} 8. Bc4 {[%clk 0:02:57]}  Nc6 {[%clk 0:02:58]} 9. O-O {[%clk 0:02:56]}  Bd7 {[%clk 0:02:58]} 10. Bg5 {[%clk 0:02:52]}  Rc8 {[%clk 0:02:58]} 11. Qe2 {[%clk 0:02:51]}  a6 {[%clk 0:02:56]} 12. Rad1 {[%clk 0:02:49]}  b5 {[%clk 0:02:55]} 13. Bb3 {[%clk 0:02:45]}  h6 {[%clk 0:02:41]} 14. Bh4 {[%clk 0:02:42]}  g5 {[%clk 0:02:35]} 15. Bg3 {[%clk 0:02:41]}  Nh5 {[%clk 0:02:18]} 16. Bh2 {[%clk 0:02:41]}  Nf4 {[%clk 0:02:17]} 17. Bxf4 {[%clk 0:02:41]}  gxf4 {[%clk 0:02:17]} 18. Nd5 {[%clk 0:02:33]}  Ne5 {[%clk 0:02:07]} 19. Nxf4 {[%clk 0:02:30]}  Nxf3+ {[%clk 0:02:04]} 20. Qxf3 {[%clk 0:02:31]}  Bxb2 {[%clk 0:02:04]} 21. Ng6 {[%clk 0:02:29]}  Be6 {[%clk 0:01:45]} 22. Bxe6 {[%clk 0:02:19]}  fxe6 {[%clk 0:01:44]} 23. Qg4 {[%clk 0:02:16]}  Rf6 {[%clk 0:01:39]} 24. e5 {[%clk 0:02:16]}  h5 {[%clk 0:01:34]} 25. Qxh5 {[%clk 0:02:16]}  Rf5 {[%clk 0:01:30]} 26. Qh8+ {[%clk 0:02:14]}  Kf7 {[%clk 0:01:31]} 27. Qh7+ {[%clk 0:02:15]}  Ke8 {[%clk 0:01:31]} 28. exd6 {[%clk 0:02:11]}  exd6 {[%clk 0:01:20]} 29. Rfe1 {[%clk 0:02:10]}  Qf6 {[%clk 0:01:13]} 30. Rxd6 {[%clk 0:02:04]} 1-0


[Site "https://www.chess.com"]

[Event "Titled Tuesday Blitz April 19 Late 2022"]
[White "Bortnyk, Olexandr"]
[Black "Adewumi, Tanitoluwa"]
[WhiteFideId "14120828"]
[BlackFideId "30966396"]
[WhiteElo "2723"]
[BlackElo "2524"]
[Result "1-0"]
[Round "01"]
[TimeControl "180+1"]
[Date "2022.04.19"]
[WhiteClock "0:00:18"]
[BlackClock "0:00:10"]

1. d4 {[%clk 0:03:00]}  Nf6 {[%clk 0:02:57]} 2. Nc3 {[%clk 0:03:00]}  d5 {[%clk 0:02:57]} 3. Bf4 {[%clk 0:02:59]}  a6 {[%clk 0:02:52]} 4. e3 {[%clk 0:02:58]}  Bf5 {[%clk 0:02:45]} 5. Nf3 {[%clk 0:02:57]}  e6 {[%clk 0:02:44]} 6. Ne5 {[%clk 0:02:57]}  h5 {[%clk 0:02:41]} 7. Bd3 {[%clk 0:02:54]}  Bxd3 {[%clk 0:02:40]} 8. cxd3 {[%clk 0:02:55]}  Nbd7 {[%clk 0:02:38]} 9. Qb3 {[%clk 0:02:55]}  b5 {[%clk 0:02:34]} 10. a4 {[%clk 0:02:51]}  Nxe5 {[%clk 0:02:25]} 11. dxe5 {[%clk 0:02:51]}  Nd7 {[%clk 0:02:25]} 12. axb5 {[%clk 0:02:51]}  Nc5 {[%clk 0:02:25]} 13. Qd1 {[%clk 0:02:34]}  d4 {[%clk 0:02:16]} 14. exd4 {[%clk 0:02:14]}  Qxd4 {[%clk 0:02:06]} 15. Be3 {[%clk 0:02:04]}  Qxd3 {[%clk 0:01:51]} 16. Qxd3 {[%clk 0:01:42]}  Nxd3+ {[%clk 0:01:47]} 17. Ke2 {[%clk 0:01:43]}  Nb4 {[%clk 0:01:38]} 18. bxa6 {[%clk 0:01:42]}  Kd7 {[%clk 0:01:30]} 19. Rhd1+ {[%clk 0:01:29]}  Kc8 {[%clk 0:01:29]} 20. a7 {[%clk 0:01:27]}  Nc2 {[%clk 0:01:25]} 21. Ra5 {[%clk 0:01:09]}  Bb4 {[%clk 0:01:18]} 22. Ra4 {[%clk 0:01:04]}  Nxe3 {[%clk 0:01:09]} 23. fxe3 {[%clk 0:00:55]}  Bc5 {[%clk 0:01:09]} 24. Nb5 {[%clk 0:00:53]}  f6 {[%clk 0:00:46]} 25. exf6 {[%clk 0:00:37]}  gxf6 {[%clk 0:00:47]} 26. Rc4 {[%clk 0:00:34]}  Bb6 {[%clk 0:00:47]} 27. Nd6+ {[%clk 0:00:29]}  Kd7 {[%clk 0:00:47]} 28. Nf7+ {[%clk 0:00:29]}  Ke7 {[%clk 0:00:46]} 29. Nxh8 {[%clk 0:00:28]}  Rxh8 {[%clk 0:00:46]} 30. Ra4 {[%clk 0:00:26]}  Ra8 {[%clk 0:00:45]} 31. g3 {[%clk 0:00:26]}  Rxa7 {[%clk 0:00:36]} 32. Rxa7 {[%clk 0:00:24]}  Bxa7 {[%clk 0:00:37]} 33. b4 {[%clk 0:00:24]}  f5 {[%clk 0:00:36]} 34. Ra1 {[%clk 0:00:21]}  Bb6 {[%clk 0:00:36]} 35. Ra8 {[%clk 0:00:22]}  Kf6 {[%clk 0:00:36]} 36. Kf3 {[%clk 0:00:21]}  Kg6 {[%clk 0:00:24]} 37. Kf4 {[%clk 0:00:20]}  Kf6 {[%clk 0:00:24]} 38. Rh8 {[%clk 0:00:16]}  e5+ {[%clk 0:00:24]} 39. Kf3 {[%clk 0:00:17]}  Kg6 {[%clk 0:00:22]} 40. e4 {[%clk 0:00:17]}  fxe4+ {[%clk 0:00:11]} 41. Kxe4 {[%clk 0:00:17]}  Bg1 {[%clk 0:00:12]} 42. h3 {[%clk 0:00:18]}  Bh2 {[%clk 0:00:11]} 43. b5 {[%clk 0:00:18]}  Bxg3 {[%clk 0:00:10]} 44. Rg8+ {[%clk 0:00:18]} 1-0


[Site "https://www.chess.com"]

[Event "Titled Tuesday Blitz April 19 Late 2022"]
[White "Bowden, Karl"]
[Black "Suder, Jakub"]
[WhiteFideId "400548"]
[BlackFideId "1195310"]
[WhiteElo "2325"]
[BlackElo "2058"]
[Result "1-0"]
[Round "01"]
[TimeControl "180+1"]
[Date "2022.04.19"]
[WhiteClock "0:00:10"]
[BlackClock "0:00:12"]

1. e4 {[%clk 0:02:59]}  c5 {[%clk 0:02:57]} 2. c3 {[%clk 0:02:59]}  g6 {[%clk 0:02:54]} 3. d4 {[%clk 0:02:59]}  cxd4 {[%clk 0:02:54]} 4. cxd4 {[%clk 0:02:59]}  d5 {[%clk 0:02:54]} 5. exd5 {[%clk 0:03:00]}  Nf6 {[%clk 0:02:54]} 6. Bb5+ {[%clk 0:02:59]}  Nbd7 {[%clk 0:02:53]} 7. Nc3 {[%clk 0:03:00]}  Bg7 {[%clk 0:02:53]} 8. d6 {[%clk 0:02:59]}  exd6 {[%clk 0:02:51]} 9. Qe2+ {[%clk 0:02:59]}  Kf8 {[%clk 0:02:38]} 10. Bf4 {[%clk 0:02:58]}  Nb6 {[%clk 0:02:34]} 11. Nf3 {[%clk 0:02:51]}  Nfd5 {[%clk 0:02:32]} 12. Bg5 {[%clk 0:02:40]}  Bf6 {[%clk 0:02:30]} 13. Bh6+ {[%clk 0:02:37]}  Bg7 {[%clk 0:02:31]} 14. Bg5 {[%clk 0:02:36]}  f6 {[%clk 0:02:23]} 15. Bd2 {[%clk 0:02:34]}  a6 {[%clk 0:02:09]} 16. Bd3 {[%clk 0:02:30]}  Kf7 {[%clk 0:02:06]} 17. Nxd5 {[%clk 0:02:23]}  Nxd5 {[%clk 0:02:03]} 18. Bc4 {[%clk 0:02:21]}  Be6 {[%clk 0:01:59]} 19. O-O {[%clk 0:02:19]}  Re8 {[%clk 0:01:53]} 20. Rfe1 {[%clk 0:02:18]}  Nc7 {[%clk 0:01:41]} 21. Ba5 {[%clk 0:02:13]}  d5 {[%clk 0:01:30]} 22. Bb3 {[%clk 0:02:06]}  Rc8 {[%clk 0:01:30]} 23. Rac1 {[%clk 0:02:01]}  Qd7 {[%clk 0:01:29]} 24. Bxc7 {[%clk 0:01:51]}  Rxc7 {[%clk 0:01:29]} 25. Rxc7 {[%clk 0:01:51]}  Qxc7 {[%clk 0:01:30]} 26. Bxd5 {[%clk 0:01:50]}  Qd7 {[%clk 0:01:24]} 27. Bxe6+ {[%clk 0:01:25]}  Rxe6 {[%clk 0:01:24]} 28. Qc4 {[%clk 0:01:10]}  Qc6 {[%clk 0:01:11]} 29. Qb3 {[%clk 0:00:55]}  Qd7 {[%clk 0:00:54]} 30. Kf1 {[%clk 0:00:48]}  Ke7 {[%clk 0:00:53]} 31. Rxe6+ {[%clk 0:00:45]}  Qxe6 {[%clk 0:00:53]} 32. Qxb7+ {[%clk 0:00:42]}  Kf8 {[%clk 0:00:53]} 33. Qb3 {[%clk 0:00:38]}  Qc6 {[%clk 0:00:50]} 34. Qc3 {[%clk 0:00:36]}  Qe6 {[%clk 0:00:46]} 35. b3 {[%clk 0:00:31]}  Bh6 {[%clk 0:00:45]} 36. Qc5+ {[%clk 0:00:25]}  Ke8 {[%clk 0:00:40]} 37. Qc4 {[%clk 0:00:19]}  Qf5 {[%clk 0:00:29]} 38. Qc6+ {[%clk 0:00:16]}  Kf7 {[%clk 0:00:24]} 39. g3 {[%clk 0:00:15]}  Qb1+ {[%clk 0:00:22]} 40. Kg2 {[%clk 0:00:15]}  Qxa2 {[%clk 0:00:22]} 41. Qd7+ {[%clk 0:00:16]}  Kg8 {[%clk 0:00:22]} 42. Qe6+ {[%clk 0:00:15]}  Kg7 {[%clk 0:00:21]} 43. Qe7+ {[%clk 0:00:14]}  Kg8 {[%clk 0:00:22]} 44. d5 {[%clk 0:00:12]}  Bf8 {[%clk 0:00:20]} 45. Qe6+ {[%clk 0:00:12]}  Kg7 {[%clk 0:00:20]} 46. d6 {[%clk 0:00:12]}  Qa5 {[%clk 0:00:18]} 47. d7 {[%clk 0:00:12]}  Qd8 {[%clk 0:00:19]} 48. Qe8 {[%clk 0:00:11]}  Be7 {[%clk 0:00:18]} 49. Nd4 {[%clk 0:00:10]}  f5 {[%clk 0:00:12]} 50. Ne6+ {[%clk 0:00:10]} 1-0


[Site "https://www.chess.com"]